[Event "Titled Tuesday Blitz March 01 Early 2022"]
[White "Roberson, Peter T"]
[Black "Talibov, Shiroghlan"]
[WhiteFideId "412384"]
[BlackFideId "13429078"]
[WhiteElo "2346"]
[BlackElo "2070"]
[Result "0-1"]
[Round "02"]
[TimeControl "180+1"]
[Date "2022.03.01"]
[WhiteClock "0:00:02"]
[BlackClock "0:00:15"]

1. e4 {[%clk 0:02:53]}  c6 {[%clk 0:02:56]} 2. Nf3 {[%clk 0:02:47]}  d5 {[%clk 0:02:55]} 3. Nc3 {[%clk 0:02:48]}  g6 {[%clk 0:02:54]} 4. d4 {[%clk 0:02:45]}  Bg7 {[%clk 0:02:54]} 5. Bd3 {[%clk 0:02:46]}  Bg4 {[%clk 0:02:54]} 6. O-O {[%clk 0:02:46]}  e6 {[%clk 0:02:53]} 7. Be3 {[%clk 0:02:43]}  Nd7 {[%clk 0:02:53]} 8. h3 {[%clk 0:02:43]}  Bxf3 {[%clk 0:02:52]} 9. Qxf3 {[%clk 0:02:44]}  Ne7 {[%clk 0:02:52]} 10. Ne2 {[%clk 0:02:40]}  dxe4 {[%clk 0:02:43]} 11. Bxe4 {[%clk 0:02:34]}  O-O {[%clk 0:02:41]} 12. c3 {[%clk 0:02:32]}  Nd5 {[%clk 0:02:38]} 13. Rad1 {[%clk 0:02:29]}  Re8 {[%clk 0:02:35]} 14. Bc2 {[%clk 0:02:25]}  f5 {[%clk 0:02:32]} 15. Bb3 {[%clk 0:02:17]}  a5 {[%clk 0:02:29]} 16. a3 {[%clk 0:02:14]}  Qb6 {[%clk 0:02:28]} 17. Bxd5 {[%clk 0:02:00]}  exd5 {[%clk 0:02:29]} 18. Bc1 {[%clk 0:01:59]}  Nf6 {[%clk 0:02:24]} 19. Nf4 {[%clk 0:01:59]}  Ne4 {[%clk 0:02:23]} 20. Nd3 {[%clk 0:01:59]}  Re7 {[%clk 0:02:19]} 21. Bf4 {[%clk 0:01:53]}  Rae8 {[%clk 0:02:19]} 22. Rfe1 {[%clk 0:01:21]}  a4 {[%clk 0:02:13]} 23. g4 {[%clk 0:01:10]}  fxg4 {[%clk 0:02:10]} 24. hxg4 {[%clk 0:01:07]}  Rf7 {[%clk 0:01:58]} 25. Qg2 {[%clk 0:01:06]}  g5 {[%clk 0:01:49]} 26. Bc1 {[%clk 0:00:51]}  Ref8 {[%clk 0:01:47]} 27. Re3 {[%clk 0:00:40]}  h6 {[%clk 0:01:14]} 28. f3 {[%clk 0:00:40]}  Nd6 {[%clk 0:01:12]} 29. Rde1 {[%clk 0:00:28]}  Nc4 {[%clk 0:01:10]} 30. Re8 {[%clk 0:00:28]}  Qc7 {[%clk 0:01:02]} 31. Nc5 {[%clk 0:00:26]}  b5 {[%clk 0:00:53]} 32. R1e2 {[%clk 0:00:19]}  Rxe8 {[%clk 0:00:45]} 33. Rxe8+ {[%clk 0:00:20]}  Bf8 {[%clk 0:00:46]} 34. Qe2 {[%clk 0:00:16]}  Qg3+ {[%clk 0:00:44]} 35. Qg2 {[%clk 0:00:11]}  Qxf3 {[%clk 0:00:26]} 36. Qxf3 {[%clk 0:00:10]}  Rxf3 {[%clk 0:00:27]} 37. Re6 {[%clk 0:00:04]}  Bxc5 {[%clk 0:00:20]} 38. dxc5 {[%clk 0:00:05]}  Rd3 {[%clk 0:00:20]} 39. Kg2 {[%clk 0:00:03]}  Rd1 {[%clk 0:00:20]} 40. Rxh6 {[%clk 0:00:02]}  Rxc1 {[%clk 0:00:19]} 41. Rxc6 {[%clk 0:00:03]}  Nxb2 {[%clk 0:00:19]} 42. Rg6+ {[%clk 0:00:02]}  Kf7 {[%clk 0:00:18]} 43. Rxg5 {[%clk 0:00:03]}  Ke6 {[%clk 0:00:15]} 44. Rg6+ {[%clk 0:00:01]}  Ke5 {[%clk 0:00:15]} 45. c6 {[%clk 0:00:01]}  Rxc3 {[%clk 0:00:15]} 46. g5 {[%clk 0:00:02]}  d4 {[%clk 0:00:15]} 47. Kf2 {[%clk 0:00:02]}  Rc2+ {[%clk 0:00:15]} 48. Ke1 {[%clk 0:00:02]}  d3 {[%clk 0:00:15]} 0-1


[Site "https://www.chess.com"]

[Event "Titled Tuesday Blitz March 01 Early 2022"]
[White "Rostovtsev, Dmitry"]
[Black "Silva, Miguel Antonio Neto"]
[WhiteFideId "34278320"]
[BlackFideId "1911929"]
[WhiteElo "2218"]
[BlackElo "2204"]
[Result "1-0"]
[Round "02"]
[TimeControl "180+1"]
[Date "2022.03.01"]
[WhiteClock "0:00:08"]
[BlackClock "0:00:08"]

1. e4 {[%clk 0:02:59]}  e5 {[%clk 0:02:59]} 2. Nf3 {[%clk 0:02:52]}  Nc6 {[%clk 0:02:59]} 3. Bb5 {[%clk 0:02:50]}  Nf6 {[%clk 0:02:57]} 4. d3 {[%clk 0:02:50]}  Bc5 {[%clk 0:02:56]} 5. Bxc6 {[%clk 0:02:49]}  dxc6 {[%clk 0:02:52]} 6. Nbd2 {[%clk 0:02:49]}  Be6 {[%clk 0:02:46]} 7. Qe2 {[%clk 0:02:44]}  Nd7 {[%clk 0:02:44]} 8. Nb3 {[%clk 0:02:41]}  Be7 {[%clk 0:02:42]} 9. h4 {[%clk 0:02:40]}  a5 {[%clk 0:02:34]} 10. Ng5 {[%clk 0:02:39]}  Bxg5 {[%clk 0:02:30]} 11. hxg5 {[%clk 0:02:39]}  Qe7 {[%clk 0:02:17]} 12. Be3 {[%clk 0:02:35]}  b6 {[%clk 0:02:13]} 13. g3 {[%clk 0:02:32]}  c5 {[%clk 0:02:08]} 14. f4 {[%clk 0:02:30]}  g6 {[%clk 0:01:47]} 15. Nd2 {[%clk 0:02:23]}  a4 {[%clk 0:01:44]} 16. Qf2 {[%clk 0:02:22]}  Nb8 {[%clk 0:01:31]} 17. fxe5 {[%clk 0:01:56]}  Nc6 {[%clk 0:01:30]} 18. Qf6 {[%clk 0:01:56]}  O-O-O {[%clk 0:01:14]} 19. Qxe7 {[%clk 0:01:55]}  Nxe7 {[%clk 0:01:14]} 20. b3 {[%clk 0:01:55]}  Nc6 {[%clk 0:01:13]} 21. Nf3 {[%clk 0:01:52]}  Bg4 {[%clk 0:01:10]} 22. Rf1 {[%clk 0:01:50]}  Rhe8 {[%clk 0:01:02]} 23. Kd2 {[%clk 0:01:45]}  Rd7 {[%clk 0:00:58]} 24. Kc3 {[%clk 0:01:42]}  Kb7 {[%clk 0:00:53]} 25. Bf4 {[%clk 0:01:38]}  a3 {[%clk 0:00:47]} 26. Ne1 {[%clk 0:01:27]}  Nd4 {[%clk 0:00:43]} 27. Ng2 {[%clk 0:01:22]}  Bh3 {[%clk 0:00:40]} 28. Rf2 {[%clk 0:01:19]}  Nb5+ {[%clk 0:00:25]} 29. Kd2 {[%clk 0:01:18]}  Nd4 {[%clk 0:00:25]} 30. Ne3 {[%clk 0:01:18]}  Nc6 {[%clk 0:00:23]} 31. Rh1 {[%clk 0:01:16]}  Be6 {[%clk 0:00:23]} 32. Rxh7 {[%clk 0:01:17]}  Nb4 {[%clk 0:00:23]} 33. Rf1 {[%clk 0:01:11]}  Ra8 {[%clk 0:00:19]} 34. Ra1 {[%clk 0:01:11]}  Nc6 {[%clk 0:00:20]} 35. Rhh1 {[%clk 0:01:00]}  b5 {[%clk 0:00:19]} 36. Nd1 {[%clk 0:00:55]}  Re8 {[%clk 0:00:19]} 37. Nc3 {[%clk 0:00:55]}  Kb6 {[%clk 0:00:18]} 38. Rh7 {[%clk 0:00:52]}  Nd4 {[%clk 0:00:17]} 39. Rf1 {[%clk 0:00:50]}  b4 {[%clk 0:00:16]} 40. Ne2 {[%clk 0:00:44]}  Nb5 {[%clk 0:00:15]} 41. Be3 {[%clk 0:00:43]}  Bg4 {[%clk 0:00:14]} 42. Rfxf7 {[%clk 0:00:42]}  Rxf7 {[%clk 0:00:13]} 43. Rxf7 {[%clk 0:00:43]}  Bxe2 {[%clk 0:00:14]} 44. Rf6+ {[%clk 0:00:33]}  c6 {[%clk 0:00:13]} 45. Kxe2 {[%clk 0:00:20]}  Nc3+ {[%clk 0:00:13]} 46. Kd2 {[%clk 0:00:20]}  Nxa2 {[%clk 0:00:14]} 47. d4 {[%clk 0:00:20]}  cxd4 {[%clk 0:00:15]} 48. Bxd4+ {[%clk 0:00:21]}  Kb5 {[%clk 0:00:15]} 49. Rf7 {[%clk 0:00:14]}  c5 {[%clk 0:00:15]} 50. Ba1 {[%clk 0:00:14]}  Kc6 {[%clk 0:00:13]} 51. Rf6+ {[%clk 0:00:13]}  Kb5 {[%clk 0:00:12]} 52. Rxg6 {[%clk 0:00:14]}  Rd8+ {[%clk 0:00:12]} 53. Rd6 {[%clk 0:00:14]}  Rg8 {[%clk 0:00:11]} 54. g6 {[%clk 0:00:15]}  c4 {[%clk 0:00:12]} 55. Rd5+ {[%clk 0:00:14]}  Kc6 {[%clk 0:00:12]} 56. Rd6+ {[%clk 0:00:14]}  Kc5 {[%clk 0:00:11]} 57. bxc4 {[%clk 0:00:15]}  Kxc4 {[%clk 0:00:12]} 58. Ke3 {[%clk 0:00:14]}  Nc3 {[%clk 0:00:12]} 59. Kf4 {[%clk 0:00:14]}  Ne2+ {[%clk 0:00:10]} 60. Kg4 {[%clk 0:00:14]}  Nc3 {[%clk 0:00:11]} 61. Kg5 {[%clk 0:00:10]}  Nxe4+ {[%clk 0:00:11]} 62. Kf5 {[%clk 0:00:11]}  Nxd6+ {[%clk 0:00:12]} 63. exd6 {[%clk 0:00:11]}  Rd8 {[%clk 0:00:12]} 64. g7 {[%clk 0:00:11]}  b3 {[%clk 0:00:13]} 65. cxb3+ {[%clk 0:00:11]}  Kxb3 {[%clk 0:00:12]} 66. Bf6 {[%clk 0:00:11]}  Rxd6 {[%clk 0:00:09]} 67. g8=Q+ {[%clk 0:00:11]}  Kc2 {[%clk 0:00:08]} 68. Qa2+ {[%clk 0:00:10]}  Kd1 {[%clk 0:00:07]} 69. Qxa3 {[%clk 0:00:10]}  Rd2 {[%clk 0:00:08]} 70. Qf3+ {[%clk 0:00:08]}  Ke1 {[%clk 0:00:08]} 71. Qe3+ {[%clk 0:00:07]}  Re2 {[%clk 0:00:07]} 72. Qxe2+ {[%clk 0:00:07]}  Kxe2 {[%clk 0:00:08]} 73. g4 {[%clk 0:00:08]} 1-0


[Site "https://www.chess.com"]

[Event "Titled Tuesday Blitz March 01 Early 2022"]
[White "Roux, Baptiste"]
[Black "Vetokhin, Ilia"]
[WhiteFideId "36017450"]
[BlackFideId "24156078"]
[WhiteElo "1935"]
[BlackElo "1897"]
[Result "0-1"]
[Round "02"]
[TimeControl "180+1"]
[Date "2022.03.01"]
[WhiteClock "0:00:51"]
[BlackClock "0:00:20"]

1. d4 {[%clk 0:02:58]}  Nf6 {[%clk 0:03:00]} 2. g3 {[%clk 0:02:57]}  e6 {[%clk 0:03:00]} 3. Bg2 {[%clk 0:02:58]}  d5 {[%clk 0:03:00]} 4. Nf3 {[%clk 0:02:58]}  Be7 {[%clk 0:03:01]} 5. O-O {[%clk 0:02:59]}  O-O {[%clk 0:03:02]} 6. c4 {[%clk 0:02:59]}  dxc4 {[%clk 0:03:03]} 7. Qc2 {[%clk 0:02:56]}  a6 {[%clk 0:03:03]} 8. a4 {[%clk 0:02:55]}  Bd7 {[%clk 0:03:03]} 9. e4 {[%clk 0:02:54]}  b5 {[%clk 0:03:00]} 10. axb5 {[%clk 0:02:54]}  Bxb5 {[%clk 0:03:00]} 11. Nc3 {[%clk 0:02:54]}  Nbd7 {[%clk 0:03:00]} 12. e5 {[%clk 0:02:51]}  Nd5 {[%clk 0:03:00]} 13. Ne4 {[%clk 0:02:51]}  c5 {[%clk 0:03:00]} 14. Rd1 {[%clk 0:02:41]}  Qc7 {[%clk 0:02:53]} 15. Bg5 {[%clk 0:02:36]}  Nb4 {[%clk 0:02:29]} 16. Qb1 {[%clk 0:02:32]}  Bxg5 {[%clk 0:02:24]} 17. Nfxg5 {[%clk 0:02:30]}  Nd3 {[%clk 0:02:21]} 18. Nd6 {[%clk 0:02:16]}  Rab8 {[%clk 0:01:59]} 19. d5 {[%clk 0:02:00]}  exd5 {[%clk 0:01:48]} 20. Ndxf7 {[%clk 0:01:49]}  N7xe5 {[%clk 0:01:35]} 21. Bxd5 {[%clk 0:01:36]}  Nxf7 {[%clk 0:01:35]} 22. Nxf7 {[%clk 0:01:23]}  Rxf7 {[%clk 0:01:34]} 23. Qc2 {[%clk 0:01:22]}  Qe5 {[%clk 0:00:53]} 24. Bxc4 {[%clk 0:01:06]}  Bxc4 {[%clk 0:00:48]} 25. Qxc4 {[%clk 0:01:07]}  Nxf2 {[%clk 0:00:48]} 26. Rf1 {[%clk 0:01:01]}  Nh3+ {[%clk 0:00:44]} 27. Kg2 {[%clk 0:01:00]}  Ng5 {[%clk 0:00:41]} 28. Rxa6 {[%clk 0:00:51]}  Rxb2+ {[%clk 0:00:30]} 29. Kh1 {[%clk 0:00:51]}  Qe4+ {[%clk 0:00:19]} 30. Qxe4 {[%clk 0:00:51]}  Rxf1# {[%clk 0:00:20]} 0-1


[Site "https://www.chess.com"]

[Event "Titled Tuesday Blitz March 01 Early 2022"]
[White "Rudzinska, Michalina"]
[Black "Hirneise, Jens"]
[WhiteFideId "1172883"]
[BlackFideId "24614734"]
[WhiteElo "1904"]
[BlackElo "2323"]
[Result "0-1"]
[Round "02"]
[TimeControl "180+1"]
[Date "2022.03.01"]
[WhiteClock "0:01:27"]
[BlackClock "0:00:48"]

1. e4 {[%clk 0:02:50]}  c6 {[%clk 0:02:53]} 2. d4 {[%clk 0:02:50]}  d5 {[%clk 0:02:53]} 3. Nc3 {[%clk 0:02:50]}  dxe4 {[%clk 0:02:49]} 4. Nxe4 {[%clk 0:02:51]}  Bf5 {[%clk 0:02:49]} 5. Ng3 {[%clk 0:02:51]}  Bg6 {[%clk 0:02:49]} 6. Bc4 {[%clk 0:02:52]}  e6 {[%clk 0:02:47]} 7. N1e2 {[%clk 0:02:53]}  Bd6 {[%clk 0:02:37]} 8. Nf4 {[%clk 0:02:53]}  Nf6 {[%clk 0:02:33]} 9. c3 {[%clk 0:02:51]}  Qc7 {[%clk 0:02:31]} 10. Qf3 {[%clk 0:02:51]}  Nbd7 {[%clk 0:02:28]} 11. h4 {[%clk 0:02:48]}  e5 {[%clk 0:02:14]} 12. Nxg6 {[%clk 0:02:48]}  hxg6 {[%clk 0:02:13]} 13. O-O {[%clk 0:02:48]}  Rxh4 {[%clk 0:02:05]} 14. Bg5 {[%clk 0:02:44]}  Rg4 {[%clk 0:02:03]} 15. Bxf6 {[%clk 0:02:42]}  Nxf6 {[%clk 0:02:04]} 16. dxe5 {[%clk 0:02:41]}  Bxe5 {[%clk 0:02:01]} 17. Rad1 {[%clk 0:02:41]}  Rxc4 {[%clk 0:01:58]} 18. Rfe1 {[%clk 0:02:38]}  Kf8 {[%clk 0:01:57]} 19. Qe2 {[%clk 0:02:36]}  Rc5 {[%clk 0:01:23]} 20. b4 {[%clk 0:02:35]}  Rd5 {[%clk 0:01:13]} 21. Rxd5 {[%clk 0:02:33]}  Nxd5 {[%clk 0:01:14]} 22. Qxe5 {[%clk 0:02:30]}  Qxe5 {[%clk 0:01:14]} 23. Rxe5 {[%clk 0:02:31]}  Nxc3 {[%clk 0:01:14]} 24. Rc5 {[%clk 0:02:27]}  Nxa2 {[%clk 0:01:12]} 25. b5 {[%clk 0:02:28]}  Nb4 {[%clk 0:01:08]} 26. bxc6 {[%clk 0:02:27]}  Nxc6 {[%clk 0:01:09]} 27. Ne4 {[%clk 0:02:26]}  Rd8 {[%clk 0:01:09]} 28. f3 {[%clk 0:02:19]}  Ke7 {[%clk 0:01:05]} 29. Rc1 {[%clk 0:02:14]}  a5 {[%clk 0:01:02]} 30. Nc5 {[%clk 0:01:57]}  Rb8 {[%clk 0:01:00]} 31. Nxb7 {[%clk 0:01:51]}  Rxb7 {[%clk 0:01:01]} 32. Rxc6 {[%clk 0:01:51]}  Ra7 {[%clk 0:00:59]} 33. Rc3 {[%clk 0:01:50]}  a4 {[%clk 0:00:59]} 34. Ra3 {[%clk 0:01:51]}  Kd6 {[%clk 0:00:59]} 35. Kf2 {[%clk 0:01:51]}  Kc5 {[%clk 0:01:00]} 36. Ke3 {[%clk 0:01:52]}  Kb4 {[%clk 0:01:01]} 37. Ra1 {[%clk 0:01:52]}  a3 {[%clk 0:01:01]} 38. Kd3 {[%clk 0:01:49]}  a2 {[%clk 0:00:51]} 39. Kc2 {[%clk 0:01:47]}  Ka3 {[%clk 0:00:52]} 40. Re1 {[%clk 0:01:28]}  Rc7+ {[%clk 0:00:49]} 41. Kd2 {[%clk 0:01:27]}  Kb2 {[%clk 0:00:48]} 0-1


[Site "https://www.chess.com"]

[Event "Titled Tuesday Blitz March 01 Early 2022"]
[White "Sadhwani, Raunak"]
[Black "Nazari, Arad"]
[WhiteFideId "35093487"]
[BlackFideId "12577324"]
[WhiteElo "2975"]
[BlackElo "2642"]
[Result "1-0"]
[Round "02"]
[TimeControl "180+1"]
[Date "2022.03.01"]
[WhiteClock "0:00:57"]
[BlackClock "0:00:04"]

1. d4 {[%clk 0:03:00]}  Nf6 {[%clk 0:02:59]} 2. Nf3 {[%clk 0:03:01]}  g6 {[%clk 0:03:00]} 3. Nc3 {[%clk 0:03:00]}  d5 {[%clk 0:03:00]} 4. Bf4 {[%clk 0:03:01]}  Bg7 {[%clk 0:03:00]} 5. Nb5 {[%clk 0:03:01]}  O-O {[%clk 0:03:00]} 6. e3 {[%clk 0:03:02]}  Na6 {[%clk 0:02:59]} 7. h3 {[%clk 0:03:01]}  c6 {[%clk 0:02:57]} 8. Nc3 {[%clk 0:02:59]}  Nc7 {[%clk 0:02:58]} 9. Be2 {[%clk 0:02:57]}  Nd7 {[%clk 0:02:37]} 10. O-O {[%clk 0:02:53]}  b5 {[%clk 0:02:31]} 11. a4 {[%clk 0:02:41]}  b4 {[%clk 0:02:30]} 12. Na2 {[%clk 0:02:42]}  a5 {[%clk 0:02:30]} 13. Nc1 {[%clk 0:02:37]}  Ba6 {[%clk 0:02:30]} 14. Nb3 {[%clk 0:02:37]}  Bxe2 {[%clk 0:02:26]} 15. Qxe2 {[%clk 0:02:37]}  Ne6 {[%clk 0:02:27]} 16. Bh2 {[%clk 0:02:32]}  c5 {[%clk 0:02:22]} 17. dxc5 {[%clk 0:02:32]}  Bxb2 {[%clk 0:02:21]} 18. Rab1 {[%clk 0:02:32]}  Bc3 {[%clk 0:02:19]} 19. c6 {[%clk 0:02:31]}  Nf6 {[%clk 0:01:52]} 20. Nfd4 {[%clk 0:02:26]}  Bxd4 {[%clk 0:01:38]} 21. exd4 {[%clk 0:01:56]}  Ne4 {[%clk 0:01:38]} 22. Rbe1 {[%clk 0:01:55]}  Qb6 {[%clk 0:01:09]} 23. Qb5 {[%clk 0:01:54]}  Ra6 {[%clk 0:01:09]} 24. Rxe4 {[%clk 0:01:47]}  dxe4 {[%clk 0:01:05]} 25. d5 {[%clk 0:01:48]}  Ng7 {[%clk 0:00:41]} 26. Re1 {[%clk 0:01:26]}  Qxb5 {[%clk 0:00:23]} 27. axb5 {[%clk 0:01:27]}  Rb6 {[%clk 0:00:23]} 28. Nd4 {[%clk 0:01:27]}  Nf5 {[%clk 0:00:23]} 29. Bc7 {[%clk 0:01:27]}  Nxd4 {[%clk 0:00:20]} 30. Bxb6 {[%clk 0:01:27]}  Nxc2 {[%clk 0:00:19]} 31. Rc1 {[%clk 0:00:58]}  b3 {[%clk 0:00:19]} 32. Bxa5 {[%clk 0:00:59]}  Nd4 {[%clk 0:00:15]} 33. Rb1 {[%clk 0:00:59]}  Ra8 {[%clk 0:00:14]} 34. b6 {[%clk 0:00:57]}  Rxa5 {[%clk 0:00:04]} 35. b7 {[%clk 0:00:57]} 1-0


[Site "https://www.chess.com"]

[Event "Titled Tuesday Blitz March 01 Early 2022"]
[White "Sahin, Handenur"]
[Black "Chernomordik, Pavel"]
[WhiteFideId "6334865"]
[BlackFideId "2804530"]
[WhiteElo "2171"]
[BlackElo "2249"]
[Result "1/2-1/2"]
[Round "02"]
[TimeControl "180+1"]
[Date "2022.03.01"]
[WhiteClock "0:01:11"]
[BlackClock "0:00:23"]

1. e4 {[%clk 0:03:00]}  g6 {[%clk 0:02:59]} 2. d4 {[%clk 0:03:00]}  Bg7 {[%clk 0:02:58]} 3. Nf3 {[%clk 0:03:01]}  d6 {[%clk 0:02:58]} 4. Bd3 {[%clk 0:03:00]}  c5 {[%clk 0:02:57]} 5. c3 {[%clk 0:03:00]}  Bg4 {[%clk 0:02:54]} 6. Be3 {[%clk 0:02:56]}  cxd4 {[%clk 0:02:53]} 7. cxd4 {[%clk 0:02:56]}  Qb6 {[%clk 0:02:44]} 8. Nbd2 {[%clk 0:02:48]}  Nc6 {[%clk 0:02:35]} 9. d5 {[%clk 0:02:41]}  Nd4 {[%clk 0:02:32]} 10. Bxd4 {[%clk 0:02:39]}  Qxd4 {[%clk 0:02:12]} 11. Nxd4 {[%clk 0:02:19]}  Bxd1 {[%clk 0:02:11]} 12. Nb5 {[%clk 0:02:19]}  Ba4 {[%clk 0:02:08]} 13. Nc7+ {[%clk 0:02:17]}  Kd7 {[%clk 0:02:06]} 14. Nxa8 {[%clk 0:02:17]}  Nh6 {[%clk 0:02:02]} 15. O-O {[%clk 0:02:12]}  Rxa8 {[%clk 0:02:00]} 16. Rab1 {[%clk 0:02:07]}  Kd8 {[%clk 0:01:57]} 17. b3 {[%clk 0:02:06]}  Bd7 {[%clk 0:01:56]} 18. Nc4 {[%clk 0:02:04]}  Ng4 {[%clk 0:01:45]} 19. Rfc1 {[%clk 0:02:01]}  Bd4 {[%clk 0:01:41]} 20. Rc2 {[%clk 0:01:46]}  Ne5 {[%clk 0:01:40]} 21. Nxe5 {[%clk 0:01:45]}  dxe5 {[%clk 0:01:40]} 22. Rbc1 {[%clk 0:01:44]}  Bb6 {[%clk 0:01:34]} 23. Kf1 {[%clk 0:01:43]}  a5 {[%clk 0:01:30]} 24. a3 {[%clk 0:01:37]}  a4 {[%clk 0:01:22]} 25. b4 {[%clk 0:01:37]}  Ke8 {[%clk 0:01:13]} 26. Ke2 {[%clk 0:01:26]}  f5 {[%clk 0:01:05]} 27. f3 {[%clk 0:01:25]}  f4 {[%clk 0:01:03]} 28. g3 {[%clk 0:01:20]}  Be3 {[%clk 0:01:02]} 29. Rd1 {[%clk 0:01:15]}  Kd8 {[%clk 0:00:47]} 30. gxf4 {[%clk 0:01:14]}  Bxf4 {[%clk 0:00:40]} 31. Bc4 {[%clk 0:01:11]}  Rc8 {[%clk 0:00:23]} 1/2-1/2


[Site "https://www.chess.com"]

[Event "Titled Tuesday Blitz March 01 Early 2022"]
[White "Savchenko, Boris"]
[Black "Cori T., Deysi"]
[WhiteFideId "4147332"]
[BlackFideId "3801934"]
[WhiteElo "2512"]
[BlackElo "2350"]
[Result "1-0"]
[Round "02"]
[TimeControl "180+1"]
[Date "2022.03.01"]
[WhiteClock "0:00:56"]
[BlackClock "0:00:08"]

1. e4 {[%clk 0:02:57]}  e6 {[%clk 0:02:59]} 2. d4 {[%clk 0:02:53]}  d5 {[%clk 0:03:00]} 3. Nc3 {[%clk 0:02:53]}  Nf6 {[%clk 0:02:59]} 4. e5 {[%clk 0:02:49]}  Nfd7 {[%clk 0:02:59]} 5. Nce2 {[%clk 0:02:50]}  c5 {[%clk 0:02:59]} 6. c3 {[%clk 0:02:50]}  Nc6 {[%clk 0:03:00]} 7. Nf3 {[%clk 0:02:50]}  cxd4 {[%clk 0:02:50]} 8. cxd4 {[%clk 0:02:50]}  Bb4+ {[%clk 0:02:49]} 9. Bd2 {[%clk 0:02:48]}  Qb6 {[%clk 0:02:49]} 10. h4 {[%clk 0:02:37]}  f6 {[%clk 0:02:44]} 11. exf6 {[%clk 0:02:19]}  Nxf6 {[%clk 0:02:43]} 12. Ng3 {[%clk 0:02:20]}  Bd7 {[%clk 0:01:57]} 13. Bc3 {[%clk 0:02:15]}  Ne4 {[%clk 0:01:54]} 14. Nxe4 {[%clk 0:02:15]}  dxe4 {[%clk 0:01:54]} 15. Ng5 {[%clk 0:02:16]}  Qxd4 {[%clk 0:01:48]} 16. Qxd4 {[%clk 0:02:11]}  Nxd4 {[%clk 0:01:47]} 17. Bxb4 {[%clk 0:02:10]}  Nc2+ {[%clk 0:01:47]} 18. Kd2 {[%clk 0:02:11]}  Nxb4 {[%clk 0:01:48]} 19. a3 {[%clk 0:02:08]}  e3+ {[%clk 0:01:41]} 20. fxe3 {[%clk 0:02:07]}  Nd5 {[%clk 0:01:30]} 21. Bc4 {[%clk 0:02:05]}  Nf6 {[%clk 0:01:14]} 22. Bxe6 {[%clk 0:02:00]}  Rd8 {[%clk 0:01:06]} 23. Kc2 {[%clk 0:01:55]}  Ke7 {[%clk 0:01:01]} 24. Bxd7 {[%clk 0:01:49]}  Rxd7 {[%clk 0:00:59]} 25. Rad1 {[%clk 0:01:50]}  Nd5 {[%clk 0:00:37]} 26. Rhe1 {[%clk 0:01:47]}  Rc8+ {[%clk 0:00:33]} 27. Kb3 {[%clk 0:01:42]}  h6 {[%clk 0:00:27]} 28. Nf3 {[%clk 0:01:42]}  Rd6 {[%clk 0:00:20]} 29. Nd4 {[%clk 0:01:40]}  Rb6+ {[%clk 0:00:16]} 30. Ka2 {[%clk 0:01:39]}  Rf8 {[%clk 0:00:16]} 31. Rd2 {[%clk 0:01:35]}  a6 {[%clk 0:00:12]} 32. e4 {[%clk 0:01:31]}  Nc7 {[%clk 0:00:12]} 33. Nf5+ {[%clk 0:01:31]}  Kf6 {[%clk 0:00:12]} 34. e5+ {[%clk 0:01:23]}  Ke6 {[%clk 0:00:10]} 35. Nxg7+ {[%clk 0:01:20]}  Ke7 {[%clk 0:00:10]} 36. g4 {[%clk 0:01:19]}  Rf4 {[%clk 0:00:09]} 37. e6 {[%clk 0:01:16]}  Rxg4 {[%clk 0:00:09]} 38. Rd7+ {[%clk 0:01:14]}  Kf6 {[%clk 0:00:09]} 39. Rxc7 {[%clk 0:01:13]}  Rg2 {[%clk 0:00:09]} 40. Rf7+ {[%clk 0:01:12]}  Kg6 {[%clk 0:00:09]} 41. Rb1 {[%clk 0:01:05]}  Rxe6 {[%clk 0:00:09]} 42. Rxb7 {[%clk 0:01:02]}  Ree2 {[%clk 0:00:09]} 43. h5+ {[%clk 0:00:59]}  Kg5 {[%clk 0:00:08]} 44. Rb6 {[%clk 0:00:59]}  a5 {[%clk 0:00:07]} 45. Rg6+ {[%clk 0:00:58]}  Kf4 {[%clk 0:00:08]} 46. Ne6+ {[%clk 0:00:56]} 1-0


[Site "https://www.chess.com"]

[Event "Titled Tuesday Blitz March 01 Early 2022"]
[White "Schut, Han"]
[Black "Nur-Mukhametova, Alisa"]
[WhiteFideId "1005561"]
[BlackFideId "54117739"]
[WhiteElo "2057"]
[BlackElo "2015"]
[Result "1-0"]
[Round "02"]
[TimeControl "180+1"]
[Date "2022.03.01"]
[WhiteClock "0:00:32"]
[BlackClock "0:00:16"]

1. e4 {[%clk 0:03:00]}  c5 {[%clk 0:02:59]} 2. Nf3 {[%clk 0:03:00]}  e6 {[%clk 0:02:59]} 3. c4 {[%clk 0:02:59]}  Nc6 {[%clk 0:02:58]} 4. Nc3 {[%clk 0:03:00]}  d6 {[%clk 0:02:40]} 5. d4 {[%clk 0:02:58]}  cxd4 {[%clk 0:02:39]} 6. Nxd4 {[%clk 0:02:59]}  Nf6 {[%clk 0:02:13]} 7. Be3 {[%clk 0:02:57]}  Be7 {[%clk 0:02:13]} 8. Be2 {[%clk 0:02:56]}  O-O {[%clk 0:02:13]} 9. O-O {[%clk 0:02:55]}  a6 {[%clk 0:02:13]} 10. Qd2 {[%clk 0:02:53]}  Qc7 {[%clk 0:02:11]} 11. Rac1 {[%clk 0:02:49]}  Ne5 {[%clk 0:02:10]} 12. f3 {[%clk 0:02:47]}  b6 {[%clk 0:02:08]} 13. Rfd1 {[%clk 0:02:44]}  Bb7 {[%clk 0:02:08]} 14. Bf1 {[%clk 0:02:44]}  Rac8 {[%clk 0:02:05]} 15. b3 {[%clk 0:02:42]}  Qb8 {[%clk 0:02:04]} 16. Qf2 {[%clk 0:02:42]}  Bd8 {[%clk 0:01:54]} 17. h3 {[%clk 0:02:41]}  Bc7 {[%clk 0:01:40]} 18. f4 {[%clk 0:02:40]}  Ned7 {[%clk 0:01:39]} 19. Bd3 {[%clk 0:02:37]}  Nc5 {[%clk 0:01:38]} 20. Qf3 {[%clk 0:02:27]}  Nxd3 {[%clk 0:01:24]} 21. Rxd3 {[%clk 0:02:28]}  Qa8 {[%clk 0:01:21]} 22. Rd2 {[%clk 0:01:38]}  Nxe4 {[%clk 0:01:20]} 23. Nxe4 {[%clk 0:01:37]}  Bxe4 {[%clk 0:01:20]} 24. Qf2 {[%clk 0:01:38]}  Rfd8 {[%clk 0:01:02]} 25. Ne2 {[%clk 0:01:37]}  Qb7 {[%clk 0:00:54]} 26. Nc3 {[%clk 0:01:35]}  Bc6 {[%clk 0:00:54]} 27. f5 {[%clk 0:01:31]}  b5 {[%clk 0:00:29]} 28. cxb5 {[%clk 0:01:26]}  axb5 {[%clk 0:00:27]} 29. Rf1 {[%clk 0:01:17]}  exf5 {[%clk 0:00:20]} 30. Qxf5 {[%clk 0:00:58]}  Bb6 {[%clk 0:00:20]} 31. Bxb6 {[%clk 0:00:50]}  Qxb6+ {[%clk 0:00:21]} 32. Kh2 {[%clk 0:00:48]}  Qb7 {[%clk 0:00:21]} 33. Rff2 {[%clk 0:00:44]}  b4 {[%clk 0:00:21]} 34. Ne2 {[%clk 0:00:43]}  Be4 {[%clk 0:00:20]} 35. Qf4 {[%clk 0:00:35]}  Bg6 {[%clk 0:00:20]} 36. Rd4 {[%clk 0:00:35]}  d5 {[%clk 0:00:20]} 37. Rxb4 {[%clk 0:00:34]}  Qa7 {[%clk 0:00:19]} 38. a4 {[%clk 0:00:33]}  Qc5 {[%clk 0:00:19]} 39. Rd4 {[%clk 0:00:33]}  Qd6 {[%clk 0:00:19]} 40. Qxd6 {[%clk 0:00:33]}  Rxd6 {[%clk 0:00:19]} 41. Nf4 {[%clk 0:00:34]}  Rb8 {[%clk 0:00:19]} 42. Rxd5 {[%clk 0:00:32]}  Rxd5 {[%clk 0:00:19]} 43. Nxd5 {[%clk 0:00:33]}  Rxb3 {[%clk 0:00:20]} 44. Ne7+ {[%clk 0:00:33]}  Kf8 {[%clk 0:00:20]} 45. Nxg6+ {[%clk 0:00:34]}  hxg6 {[%clk 0:00:21]} 46. Ra2 {[%clk 0:00:35]}  Rb6 {[%clk 0:00:20]} 47. a5 {[%clk 0:00:35]}  Ra6 {[%clk 0:00:21]} 48. Kg3 {[%clk 0:00:36]}  Ke7 {[%clk 0:00:22]} 49. Kf4 {[%clk 0:00:37]}  Kd6 {[%clk 0:00:22]} 50. Ke4 {[%clk 0:00:38]}  Kc5 {[%clk 0:00:20]} 51. Ke5 {[%clk 0:00:35]}  Re6+ {[%clk 0:00:20]} 52. Kf4 {[%clk 0:00:34]}  Ra6 {[%clk 0:00:20]} 53. Ke5 {[%clk 0:00:33]}  Re6+ {[%clk 0:00:19]} 54. Kf4 {[%clk 0:00:34]}  Kb5 {[%clk 0:00:19]} 55. a6 {[%clk 0:00:30]}  Rxa6 {[%clk 0:00:17]} 56. Rxa6 {[%clk 0:00:31]}  Kxa6 {[%clk 0:00:17]} 57. Ke5 {[%clk 0:00:32]}  Kb6 {[%clk 0:00:18]} 58. Kd6 {[%clk 0:00:32]}  Kb5 {[%clk 0:00:16]} 59. Ke7 {[%clk 0:00:33]}  f5 {[%clk 0:00:16]} 60. Kf7 {[%clk 0:00:32]}  Kc5 {[%clk 0:00:16]} 61. Kxg6 {[%clk 0:00:33]}  Kd5 {[%clk 0:00:16]} 62. Kxf5 {[%clk 0:00:32]} 1-0


[Site "https://www.chess.com"]